Cogmind - Beta 14 @@@ ROGUE MODE // 2024.09.24 @ 23:17:54 // Winter2022/Polymind Player: AnotherZach Result: Destroyed by Y-45 Defender with Beam Rifle Performance ------------- Evolutions (2) 1000 Regions Visited (5) 1000 Robots Destroyed (37) 185 Value Destroyed (1186) 1186 Prototype IDs (0) 0 Alien Tech Used (0) 0 Bonus (2705) 2705 TOTAL SCORE: 5886 Bonus ------- Polymind Skill 2341 High Alert Combat Kills 164 Entered Garrisons 200 Cogmind --------- Core Integrity 0/550 Matter 0/0 Energy 16/100 System Corruption 4% Temperature Cool (27) Movement Core (50) Location -8/Materials Parts ------- > --- POWER (1) -------- (None) > --- PROPULSION (2) --- (None) > --- UTILITY (3) ------ (None) > --- WEAPON (1) ------- (None) > --- INVENTORY (0) ---- (None) Peak State ------------ > --- POWER ------------ Light Deuterium Engine > --- PROPULSION ------- Combat Airjet Combat Airjet > --- UTILITY ---------- Launcher Guidance Computer Improved Light Armor Plating Shock Absorption System > --- WEAPON ----------- Mini Grenade Launcher > --- INVENTORY -------- (None) [Rating: 26] Favorites ----------- Power Light Ion Engine Engine Light Ion Engine Power Core Light Nuclear Core Propulsion Wheel Treads Light Treads Leg Carbon-fiber Leg Wheel Wheel Hover Unit Combat Airjet Flight Unit Flight Unit Utility Improved Terrain Scanner Device Improved Terrain Scanner Storage Medium Matter Pod Processor Launcher Guidance Computer Hackware Hacking Suite Protection Improved Light Armor Plating Weapon Mining Laser Energy Gun Beam Rifle Ballistic Gun Assault Rifle Launcher Mini Grenade Launcher Special Weapon Mining Laser Special Melee Weapon Improved Datajack Build | -11 -10 -9 -8 -8 -8 ------- Run | Yrd Mat Mat Mat Gar Mat Slots Evolved . | . . . . . . Power . | . . . . . . Propulsion . | . . . . . . Utility . | . . . . . . Weapon . | . . . . . . Parts Attached . | . . . . . . Power . | . . . . . . Engine . | . . . . . . Core . | . . . . . . Reactor . | . . . . . . Propulsion . | . . . . . . Treads . | . . . . . . Leg . | . . . . . . Wheel . | . . . . . . Hover . | . . . . . . Flight . | . . . . . . Utility . | . . . . . . Device . | . . . . . . Storage . | . . . . . . Processor . | . . . . . . Hackware . | . . . . . . Protection . | . . . . . . Artifact . | . . . . . . Weapon . | . . . . . . Energy Gun . | . . . . . . Energy Cannon . | . . . . . . Ballistic Gun . | . . . . . . Ballistic Cannon . | . . . . . . Launcher . | . . . . . . Special Weapon . | . . . . . . Impact Weapon . | . . . . . . Slashing Weapon . | . . . . . . Piercing Weapon . | . . . . . . Special Melee Weapon . | . . . . . . Unidentified Prototypes . | . . . . . . Parts Lost 5 | 2 . . 1 2 . Power 2 | 1 . . 1 . . Propulsion . | . . . . . . Utility 2 | 1 . . . 1 . Weapon 1 | . . . . 1 . Highest Loss Streak 2 | 2 . . 1 1 . To Critical Strikes . | . . . . . . Average Slot Usage (%) 88 | . 71 71 87 95 100 Engine 7 | . . . 6 12 14 Core 3 | . . . 8 . . Treads 2 | . . . . 9 . Leg 7 | . . . 17 . . Wheel 4 | . . . 10 . . Hover 13 | . 28 28 2 16 28 Flight 1 | . . . 2 . . Device 7 | . . . 2 17 14 Storage 1 | . . . 3 . . Processor 11 | . 14 14 12 8 9 Protection 6 | . 14 14 . 10 9 Energy Gun 1 | . . . . 4 . Ballistic Gun 9 | . . . 18 4 . Launcher 5 | . 14 14 . 8 9 Peak Build Rating 26 | 26 19 19 19 26 26 Average Rating 12 | 8 19 19 10 19 23 On Entrance 16 | . 19 19 19 15 26 Naked Turns 46 | . . . 37 6 3 Heaviest Build 18 | 12 4 4 11 18 12 Greatest Support 40 | 24 24 24 30 40 24 Greatest Overweight (x) 1 | 1 . . . . . Average Overweight (x) . | . . . . . . Largest Inventory Capacity 12 | 1 1 1 12 1 1 Average Capacity . | . 1 1 1 . . Most Carried 12 | . . . 12 1 . Average Carried . | . . . . . . Final Capacity 1 | 1 1 1 1 1 . Final Carried 1 | . . . 1 . . Class Distribution -------------------- 41% | Demolisher 22% | Hunter 11% | Sentry 8% | Worker 3% | Cogmind 3% | Operator 3% | Mechanic Dominant Class ---------------- Demolisher | -10/Materials Demolisher | -9/Materials Hunter | -8/Materials Demolisher | -8/Garrison Demolisher | -8/Materials Resources | -11 -10 -9 -8 -8 -8 ----------- Run | Yrd Mat Mat Mat Gar Mat Matter Collected 433 | 105 20 67 143 98 . Remotely . | . . . . . . Salvage Created 724 | 7 79 107 229 156 146 Parts 51 | . 3 11 19 9 9 Haulers Intercepted . | . . . . . . Recyclers Shooed . | . . . . . . Parts Field Recycled . | . . . . . . Retrieved Matter . | . . . . . . Parts Self-Destructed . | . . . . . . Prevented . | . . . . . . Kills | -11 -10 -9 -8 -8 -8 ------- Run | Yrd Mat Mat Mat Gar Mat Combat Hostiles Destroyed 37 | 9 . 3 10 12 3 Melee 3 | . . . 1 2 . Guns 13 | . . . 9 4 . AOE 21 | 9 . 3 . 6 3 Classes Destroyed 12 | 1 2 4 2 2 1 Worker 3 | . . 1 2 . . Tunneler 1 | . . 1 . . . Recycler 1 | . 1 . . . . Operator 1 | . . . 1 . . Watcher 3 | . 1 2 . . . Swarmer 11 | . . . 7 4 . Grunt 9 | . . 2 2 4 1 Brawler 1 | . . . . . 1 Sentry 5 | . . 1 1 2 1 Hunter 1 | . . . . 1 . Programmer 1 | . . . . 1 . Assembled 9 | 9 . . . . . Best Kill Streak 9 | 9 2 4 3 4 3 Combat Bots Only 9 | 9 . 2 3 4 3 Max Kills in Single Turn 2 | 2 1 2 1 2 1 Gunslinging . | . . . . . . Exploded 2 | 2 . 1 . 2 1 Melee 1 | . . . 1 1 . Uniques/NPCs Destroyed . | . . . . . . Combat | -11 -10 -9 -8 -8 -8 -------- Run | Yrd Mat Mat Mat Gar Mat Hostile Shots Fired 218 | 29 . 4 97 79 9 Missed 67 | 13 . 2 28 20 4 Damage Taken 2097 | 359 . 41 890 739 68 Core 656 | 83 . 18 321 192 42 Absorbed by Shields 8 | . . . . 8 . Ignored by Resistances 79 | 22 . 10 29 18 . Core Remaining (%) 75 | 66 66 95 . . . Volleys Fired 97 | 15 2 7 38 31 4 Largest 2 | 1 1 1 2 2 1 Hottest 100 | 100 30 30 48 79 30 Shots Fired 138 | 15 2 7 64 46 4 Gun 94 | . . . 64 30 . Cannon . | . . . . . . Launcher 37 | 8 2 7 . 16 4 Special 7 | 7 . . . . . Kinetic 79 | . . . 64 15 . Thermal 22 | 7 . . . 15 . Explosive 37 | 8 2 7 . 16 4 Electromagnetic . | . . . . . . Robot Hit Streak 15 | 4 1 6 9 12 15 Robot Miss Streak 4 | 1 . . 4 2 . Penetration Max 1 | . . . 1 . . Secondary Targets 1 | . . . 1 . . Max Gunslinging Chain 1 | . . . 1 . . Shots Hit Robots 77 | 5 1 5 37 26 3 Core Hits 86 | 18 3 10 25 24 6 Critical Kills . | . . . . . . Critical Parts Destroyed . | . . . . . . Critical Strikes 1 | . . . . 1 . Burn 1 | . . . . 1 . Melee Attacks . | . . . . . . Impact . | . . . . . . Slashing . | . . . . . . Piercing . | . . . . . . Sneak Attacks . | . . . . . . Combat Hostiles . | . . . . . . Follow-up Attacks . | . . . . . . Damage Inflicted 2992 | 828 83 414 668 780 219 Guns 871 | . . . 634 237 . Cannons . | . . . . . . Explosions 1940 | 711 83 401 . 526 219 Melee . | . . . . . . Ramming 155 | 91 . 13 34 17 . Kinetic 735 | . . . 634 101 . Thermal 162 | 26 . . . 136 . Explosive 1940 | 711 83 401 . 526 219 Electromagnetic . | . . . . . . Impact . | . . . . . . Slashing . | . . . . . . Piercing . | . . . . . . Highest Corruption 4 | 1 1 3 2 4 4 Average Corruption 2 | 1 1 2 2 2 4 Corruption Purged . | . . . . . . Corruption Blocked . | . . . . . . Effects 11 | . . 2 3 4 2 Message Errors 4 | . . 1 1 1 1 Matter Fused 2 | . . . 1 1 . Heat Flow Errors 1 | . . . . . 1 Energy Discharges 3 | . . . 1 2 . Parts Fused 1 | . . 1 . . . Overload Shots . | . . . . . . Overflow Damage 14 | 12 . . 2 . . Projectiles . | . . . . . . Explosions 12 | 12 . . . . . Melee 2 | . . . 2 . . Knockbacks . | . . . . . . Impact . | . . . . . . Kinetic . | . . . . . . Secondary . | . . . . . . Self-Inflicted Damage 98 | 68 . 15 9 6 . Shots 4 | 1 . 1 . 2 . Rammed 59 | 24 . 3 26 6 . Targets Rammed 61 | 24 . 3 26 8 . Kicked . | . . . . . . Crushed 2 | . . . . 2 . Highest Temperature 132 | 115 . . 57 9 132 Average Temperature 37 | 48 . . 18 4 59 Received Heat Transfer 456 | . . 15 243 162 36 Siege Activations . | . . . . . . Robots Corrupted . | . . . . . . Combat Hostiles . | . . . . . . Parts Fried . | . . . . . . Impact Corruptions 1 | . . . 1 . . Robots Melted . | . . . . . . Combat Hostiles . | . . . . . . Parts Melted . | . . . . . . Heat Transferred 418 | 50 . . . 368 . Parts Sabotaged . | . . . . . . Parts Stolen . | . . . . . . Parts Stripped . | . . . . . . Power Chain Reactions . | . . . . . . Alert | -11 -10 -9 -8 -8 -8 ------- Run | Yrd Mat Mat Mat Gar Mat Peak Influence 832 | . 29 213 788 832 581 Initial 405 | . . 11 89 364 405 Average 234 | . 16 79 385 583 458 Maximum Alert Level 3 | . . 1 3 3 2 Low Security (%) 59 | 100 100 88 35 . . Level 1 9 | . . 11 18 19 . Level 2 23 | . . . 32 55 100 Level 3 7 | . . . 13 25 . Level 4 . | . . . . . . Level 5 . | . . . . . . High Security . | . . . . . . Max Security . | . . . . . . Squads Dispatched 6 | . . . 4 . 2 Investigation 1 | . . . . . 1 Extermination . | . . . . . . Reinforcement 2 | . . . 1 . 1 Assault . | . . . . . . Garrison 3 | . . . 3 . . Intercept . | . . . . . . Searches Triggered 1 | . . . 1 . . Construction Impeded . | . . . . . . Haulers Reinforced . | . . . . . . Active Scanning Responses . | . . . . . . Cargo Convoy Interrupts . | . . . . . . Stealth | -11 -10 -9 -8 -8 -8 --------- Run | Yrd Mat Mat Mat Gar Mat Distress Signals 3 | . . 1 1 . 1 Communications Jammed . | . . . . . . Distress Signals . | . . . . . . Times Spotted 91 | 23 . 5 34 20 9 Peak Tracking Total 8 | 8 . 2 7 4 5 Tactical Retreats 6 | . . 1 2 3 . Traps | -11 -10 -9 -8 -8 -8 ------- Run | Yrd Mat Mat Mat Gar Mat Traps Triggered 6 | . . 2 . 3 1 Indirectly . | . . . . . . Trap Hack Attempts . | . . . . . . Triggered . | . . . . . . Disarmed . | . . . . . . Reprogrammed . | . . . . . . Reused . | . . . . . . Traps Extracted . | . . . . . . Installed . | . . . . . . Triggered . | . . . . . . Machines | -11 -10 -9 -8 -8 -8 ---------- Run | Yrd Mat Mat Mat Gar Mat Machines Disabled 2 | . . 1 . 1 . Max in Single Turn 1 | . . 1 . 1 . Garrison Relay 1 | . . . . 1 . Machines Repaired . | . . . . . . Machines Dismantled . | . . . . . . Machines Sabotaged . | . . . . . . Overloaded Fab Kills . | . . . . . . Hacking | -11 -10 -9 -8 -8 -8 --------- Run | Yrd Mat Mat Mat Gar Mat Machines Accessed 7 | . 1 2 3 1 . Terminals 5 | . . 2 2 1 . Fabricators . | . . . . . . Repair Stations . | . . . . . . Recycling Units 1 | . 1 . . . . Scanalyzers . | . . . . . . Garrison Access 1 | . . . 1 . . Total Hacks 10 | . 1 4 3 2 . Successful 5 | . 1 1 2 1 . Failed 5 | . . 3 1 1 . Catastrophic 2 | . . 2 . . . Database Lockouts . | . . . . . . Manual 7 | . 1 4 2 . . Terminals 8 | . . 4 2 2 . Fabricators . | . . . . . . Repair Stations . | . . . . . . Recycling Units 1 | . 1 . . . . Scanalyzers . | . . . . . . Garrison Access 1 | . . . 1 . . Terminal Hacks 3 | . . 1 1 1 . Robot Schematic 1 | . . . 1 . . Branch Access Points 1 | . . 1 . . . Emergency Access Points 1 | . . . . 1 . Fabricator Hacks . | . . . . . . Repair Station Hacks . | . . . . . . Recycling Unit Hacks . | . . . . . . Scanalyzer . | . . . . . . Garrison Access Hacks 1 | . . . 1 . . Unlock Access 1 | . . . 1 . . Unauthorized Hacks 1 | . 1 . . . . Terminals . | . . . . . . Fabricators . | . . . . . . Repair Stations . | . . . . . . Recycling Units 1 | . 1 . . . . Recyclers 1 | . 1 . . . . Scanalyzers . | . . . . . . Garrison Access . | . . . . . . Data Cores Recovered . | . . . . . . Used . | . . . . . . Hacking Detections 4 | . . 2 1 1 . Full Trace Events . | . . . . . . Feedback Events . | . . . . . . Feedback Blocked . | . . . . . . Robot Schematics Acquired 1 | . . . 1 . . Robots Built . | . . . . . . Authchips . | . . . . . . Time . | . . . . . . Total Robot Build Rating . | . . . . . . Part Schematics Acquired . | . . . . . . Parts Built . | . . . . . . Authchips . | . . . . . . Time . | . . . . . . Total Part Build Rating . | . . . . . . Parts Repaired . | . . . . . . Time . | . . . . . . Parts Recycled . | . . . . . . Recycled Matter . | . . . . . . Retrieved Matter . | . . . . . . Retrieved Components . | . . . . . . Parts Scanalyzed . | . . . . . . Part Schematics Acquired . | . . . . . . Parts Damaged . | . . . . . . Bothacking | -11 -10 -9 -8 -8 -8 ------------ Run | Yrd Mat Mat Mat Gar Mat Used RIF Installer . | . . . . . . Robots Hacked 11 | 1 . . 6 2 2 Non-combat 4 | . . . 3 . 1 Combat 7 | 1 . . 3 2 1 Robot Hacks Applied 16 | 1 . . 10 2 3 find_station 2 | . . . 2 . . find_terminals 1 | . . . . . 1 map_route 1 | . . . 1 . . mark_security 1 | . . . 1 . . find_shortcuts 7 | 1 . . 3 2 1 find_garrison 4 | . . . 3 . 1 Relay Couplers Released 6 | . . . . 6 . Machine Destruction 3 | . . . . 3 . Programmers 3 | . . . . 3 . Fabnet Peak Effective % . | . . . . . . Robots Rewired . | . . . . . . Allies Hacked . | . . . . . . Hacks Repelled . | . . . . . . Allies | -11 -10 -9 -8 -8 -8 -------- Run | Yrd Mat Mat Mat Gar Mat Total Allies . | . . . . . . Largest Group . | . . . . . . Highest-Rated Group . | . . . . . . Highest-Rated Ally . | . . . . . . Total Orders . | . . . . . . Ally Attacks . | . . . . . . Total Damage . | . . . . . . Kills . | . . . . . . Allies Corrupted . | . . . . . . Allies Melted . | . . . . . . Intel | -11 -10 -9 -8 -8 -8 ------- Run | Yrd Mat Mat Mat Gar Mat Robot Analysis Total 9 | 2 . . 5 1 1 Derelict Logs Recovered . | . . . . . . Drone Launches . | . . . . . . Drone Recoveries . | . . . . . . Exploration | -11 -10 -9 -8 -8 -8 ------------- Run | Yrd Mat Mat Mat Gar Mat Turns Passed 2065 | 848 52 152 528 368 117 Spaces Moved 1805 | 719 63 167 421 272 163 Core 150 | 59 . . 73 11 7 Treads 50 | . . . . 50 . Legs 130 | . . . 125 5 . Wheels 747 | 611 . . 136 . . Hover 723 | 49 63 167 82 206 156 Flight 5 | . . . 5 . . Fastest Speed 37 | 50 77 77 37 50 50 Average Speed 80 | 79 77 77 82 91 66 Slowest Speed 160 | 100 77 80 120 160 77 Overloaded Moves . | . . . . . . Propulsion Burnouts . | . . . . . . Robots Hopped 3 | 3 . . . . . Cave-ins Triggered . | . . . . . . Exploration Rate (%) 27 | 34 18 21 35 36 19 Regions Visited 5 Branch Regions . Pre-discovered Areas . | . . . . . . Known Exits Taken 1 | . . . 1 . . Unknown Exits Taken 3 | 1 1 1 . . . Scrap Searched . | . . . . . . Spaces Dug 6 | 6 . . . . . Terrain Destroyed 222 | 35 20 45 2 105 15 Melee . | . . . . . . Projectile 7 | 5 . . 2 . . AOE 215 | 30 20 45 . 105 15 Terrain Rammed 3 | 3 . . . . . Walls Destroyed . | . . . . . . Machines Disabled . | . . . . . . Actions | -11 -10 -9 -8 -8 -8 --------- Run | Yrd Mat Mat Mat Gar Mat Total 2254 | 965 64 182 538 338 167 Wait 76 | 7 . 6 49 14 . Move 1795 | 712 62 166 421 271 163 Hop 3 | 3 . . . . . Pick Up 1 | . . . 1 . . Fast Attach . | . . . . . . Attach . | . . . . . . Detach . | . . . . . . Swap . | . . . . . . Drop . | . . . . . . Fire 97 | 15 2 7 38 31 4 Melee . | . . . . . . Ram 56 | 27 . 3 26 . . Kick . | . . . . . . Crush 8 | . . . . 8 . Escape Stasis 14 | . . . . 14 . Rewire 2 | . . . 2 . . Trap . | . . . . . . Miscellaneous 202 | 201 . . 1 . . Route ------- -11/Scrapyard -10/Materials -9/Materials (discovered 2 exits: *Mat / Min) -8/Materials -8/Garrison -8/Materials History --------- Turn | Location | Event 4 | -11/Scrapyard | Discovered new exit (range 14) 776 | -11/Scrapyard | Assembled infested the area 846 | -11/Scrapyard | Destroyed 9 combat bots 849 | -11/Scrapyard | Entered Materials 887 | -10/Materials | Discovered new exit (range 15) 901 | -10/Materials | Entered another Materials area 1031 | -9/Materials | Discovered new exit (range 15) 1047 | -9/Materials | Identified exit to Mines 1053 | -9/Materials | Entered another Materials area 1277 | -8/Materials | Garrison activated, responded to threat 1347 | -8/Materials | Core integrity fell below 50% 1453 | -8/Materials | Search patrols dispatched 1581 | -8/Materials | Identified exit to Garrison 1581 | -8/Materials | Entered Garrison 1739 | -8/Garrison | Core integrity fell below 20% 1919 | -8/Garrison | Garrison Relay disabled 1936 | -8/Garrison | Discovered new exit (range 15) 1949 | -8/Garrison | Entered Materials 2066 | -8/Materials | Destroyed by Y-45 Defender with Beam Rifle Last Messages --------------- 02020_ Released control of D-53 Grenadier. 02020_ O-24 Administrator: "IFF HANDSHAKE FAILED. SECURING TERMINAL." 02021_ D-53 Grenadier reactivates. 02021_ Took control of D-53 Grenadier. 02024_ Released control of D-53 Grenadier. 02024_ Took control of O-24 Administrator. 02024_ Extracted analysis data for O-24 Administrator. 02025_ D-53 Grenadier reactivates. 02026_ The unstable cave ceiling collapses. 02038_ Learned position of Alarm Trap. 02056_ O-16 Technician: "IFF HANDSHAKE FAILED. SECURING TERMINAL." 02058_ O-16 Technician sends out distress signal. 02062_ ALERT: Hostiles spotted, dispatching reinforcements to Terminal M012. 02064_ Released control of O-24 Administrator. 02066_ Critical hit (Burn: +37). Map ----- +----------------------------------------------------+ | ?????????# [[## | | ?????????# ][ ###+## ######## !!## | | ?????????# ][ ### #+######## !!## | | ?????????# #?# # ! # !!## | | ?????????# # #?# + # !!## | | ?????????####### #?# # ]!! # ###### | | ???????????????# #?# # ]! # | | ???????????????#### #?# #! !! + | | ??????????????????# #?# # = # | | ??????????????????# #?##### ### ##### | | ??????????????????# #?????# ""T"" #?# #???? | | ??????????????????# #?????# """"" #?# #???? | | ??????????????????# #?????#+########?# #???? | | ???????????######?# ##???????????????# #???? | | ???????????? # #???????????????# #????] | | ???????????# """ # #???????????????# #????] | | ???????????# """ + #?????+?????????# #????# | | ???????????#! """ # #???????????????+ #????? | | ???????????? # #???????????????? ?????? | | ???????????# [ !?# #???????????????? ?????? | | ???????????######?# o#???????????????? ?????? | | ??????????????????# #???????????????? ?????? | | ??????????????????# #???????????????? ?????? | | ?????????????????## ##??????????????? ?????? | | ?????????????????# ##### #????? ?????? | | ?????????????????# @ #???????????? | | ?????????? g Y T t ??????????? | | ?????? g# [ #???????????? | | ??????? # ##### #???????????? | | ??????? ?#######?????# ###???????????? | | ???????? ???????????????#?????????????? | | ????????? ???????????????????????????????? | | ????????? ???????????????????????????????? | | ?????????? ????????????????????????????????? | | ?????????????????????????????????????????????? | | ?????????????????????????????????????????????? | | ?????????????????????????????????????????????? | | ?????????????????????????????????????????????? | | ?????????????????????????????????????????????? | | ?????????????????????????????????????????????? | | ?????????????????????????????????????????????? | | ?????????????????????????????????????????????? | | ?????????????????????????????????????????????? | | ?????????????????????????????????????????????? | | ?????????????????????????????????????????????? | | ?????????????????????????????????????????????? | | ?????????????????????????????????????????????? | | ?????????????????????????????????????????????? | | ?????????????????????????????????????????????? | | ?????????????????????????????????????????????? | +----------------------------------------------------+ Best States ------------- Heat Dissipation 36 Energy Generation 24 Energy Capacity 215 Matter Stores 196 Matter Capacity 200 Sight Range 18 Robot Scan Range 15 Terrain Scan Range 16 Terrain Scan Density 10 Armor Coverage 150 Resistance: KI 25 Resistance: EX 75 Resistance: I 25 Evasion (%) 62 Targeting Accuracy 5 Launcher Accuracy 20 Recoil Reduction 2 Offensive Hacking 10 Defensive Hacking 10 Item Schematics ----------------- None Robot Schematics ------------------ H-55 Commando | -8/Materials | Hacked Fabricated ------------ Nothing Alien Tech Used ----------------- None Achievements -------------- Curiosity Killed The Cat Challenges ------------ None Polymind | -11 -10 -9 -8 -8 -8 ---------- Run | Yrd Mat Mat Mat Gar Mat Hosts 15 | 3 . . 8 2 2 Combat Hostiles 7 | 1 . . 3 2 1 Allies . | . . . . . . Unique Host Classes 9 | 2 . . 5 1 1 Average Host Suspicion 63 | 28 58 84 93 98 52 Unsuspicious Activity 1220 | 1069 . . 128 . 23 Returns to Shadow . | . . . . . . Fuzzy Dispatches . | . . . . . . Protomatter Created 198 | 35 . 29 46 88 . Used 277 | 50 . . 117 63 47 Decayed 3 | . . . . 3 . Highest Spend 40 | 40 . . 34 40 40 Top 5 Hosts by Kills: D-53 Grenadier (-11/Scrapyard: 12) D-53 Grenadier (-8/Garrison: 9) Y-45 Defender (-8/Garrison: 6) H-55 Commando (-8/Materials: 4) S-10 Pest (-8/Materials: 3) Game ------ Seed FactoryParticleShearcannon Manual? 0 Play Time 00:21:49 Cumulative 744.2 hours Start 2024.09.24 @ 22:56:54 End 2024.09.24 @ 23:17:54 Sessions 1 Manual Loads 0 Difficulty Rogue Special Mode Winter2022/Polymind Game No. 165 Rogue 27 Adventurer 138 Explorer 0 Win Type - Total 13 Types 8/0/1/2/1/0/0/0/1 Lore% 79 Gallery% 84 Achievement% 75 Wizard Run 0 Options --------- Layout 2 ASCII 0 Keyboard 0 Movement Mouse Keybinds 0 Fullscreen 1 Font 24/Smallcaps Map View 50x49 Zoom Use 0% Tactical HUD 1 Map Filters NONE Filters NONE Steam 1 RUN: 1c858734-388b-4722-90c3-6015882685ec